[Event "Germany Countries-chT Youth 2022"]
[Site "Wiesbaden"]
[Date "2022.10.01"]
[Round "2"]
[White "Stork, Oliver"]
[Black "Pubantz, Jan"]
[Result "1-0"]
[ECO "A11"]
[WhiteElo "2315"]
[BlackElo "2273"]
[Annotator "TA"]
[PlyCount "89"]
[EventDate "2022.09.28"]
[EventType "team-tourn"]
[EventRounds "7"]
[EventCountry "GER"]
[SourceTitle "playchess.com"]
[Source "ChessBase"]
[SourceQuality "1"]
[TimeControl "40/5400+30:1800+30"]

{[%evp 14,89,1,0,0,0,19,29,39,31,28,40,28,32,31,41,33,40,74,18,31,0,0,0,0,0,0,0,25,16,11,18,108,102,95,99,108,104,97,97,107,102,108,108,108,104,103,105,110,113,97,54,120,116,390,363,362,343,401,81,408,415,420,400,487,389,557,535,597,608,792,767,853,870,1613,1488,1252,1222]} 1. c4 {[%emt 0:00:03]} c6 {[%emt 0:00:03]} 2. Nf3 {[%emt 0:00:07]} d5 {[%emt 0:00:03]} 3. e3 {[%emt 0:00:07]} Nf6 {[%emt 0:00:23]} 4. Nc3 {[%emt 0:00:09]} e6 {[%emt 0:00:30]} 5. b3 {[%emt 0:00:11]} Bd6 {[%emt 0:00:15]} 6. Bb2 {[%emt 0:00:07]} O-O {[%emt 0:00:19]} 7. Be2 {[%emt 0:00:26]} Nbd7 {[%emt 0:06:20]} 8. Qc2 {[%emt 0:00:25]} Qe7 {[%emt 0:04:07] A11: English Opening: 1...c6.} 9. O-O {[%emt 0:01:52]} a6 {[%emt 0:08:40]} 10. d4 {[%emt 0:00:51]} b6 {[%emt 0:05:08] White has an edge.} 11. e4 {[%emt 0:10:29]} dxe4 {[%emt 0:03:27]} 12. Nxe4 {[%emt 0:01:23]} Nxe4 {[%emt 0:02:20]} 13. Qxe4 {[%emt 0:00:08]} Bb7 {[%emt 0:01:31]} 14. Rfe1 {[%emt 0:11:01]} Nf6 {[%emt 0:02:50]} 15. Qh4 {[%emt 0:00:49] [#]} Ba3 $146 {[%emt 0:04:37] [#]} ({Predecessor:} 15... Rfd8 16. Bd3 h6 17. g4 Nh7 18. Bxh7+ Kxh7 19. g5 Rd7 20. Rad1 Rad8 21. d5 cxd5 22. cxd5 {1-0 (54) Bars,J (2338)-Shabashov,M ICCF email 2013}) 16. Bc3 {[%emt 0:20:34]} (16. Bd3 $1 $16 {Black must now prevent Bxa3.} Bxb2 17. Bxh7+ Kh8 18. Rab1) 16... Bb4 $11 {[%emt 0:01:34]} 17. Rac1 {[%emt 0:00:23]} Bxc3 {[%emt 0:02:43]} 18. Rxc3 {[%emt 0:00:02]} c5 {[%emt 0:01:58]} 19. Rd1 {[%emt 0:08:42]} Rad8 {[%emt 0:04:09]} 20. Ne5 {[%emt 0:12:15]} cxd4 {[%emt 0:16:32]} 21. Rh3 {[%emt 0:03:14] Hoping for Bd3.} Be4 {[%emt 0:04:00]} 22. Bd3 {[%emt 0:10:00]} Qb7 {[%emt 0:15:38]} (22... Bxd3 $1 $11 {keeps the balance.} 23. Rhxd3 Qb7) 23. g4 $16 {[%emt 0:07:51][%cal Bg2g4,Bg4g5][%mdl 32]} Bxd3 {[%emt 0:10:59]} 24. Rdxd3 {[%emt 0:00:07]} Qe4 {[%emt 0:01:42]} 25. g5 {[%emt 0:00:08][%mdl 1024] White has strong compensation. Active counter play!} Qe1+ {[%emt 0:01:06]} 26. Kg2 {[%emt 0:00:04][%cal Bg1g2,Bg2f1,Bf1e2,Be2d2][%mdl 32]} Qe4+ {[%emt 0:00:12] [#]} 27. Kf1 $1 {[%emt 0:00:21]} Qh1+ {[%emt 0:00:55]} 28. Ke2 {[%emt 0:00:06]} Qe4+ {[%emt 0:00:16]} 29. Kd2 {[%emt 0:02:59] Chess con chili.} Qxh4 {[%emt 0:01:02]} 30. Rxh4 {[%emt 0:00:04]} Nd7 {[%emt 0:01:04]} 31. Nc6 {[%emt 0:01:05] Threatening mate with Ne7+.} Rde8 {[%emt 0:00:17] Prevents Ne7+.} 32. Rdh3 $40 {[%emt 0:03:37][%mdl 128] Black needs to defend precisely.} f6 {[%emt 0:00:59]} (32... f5 $1 $14) 33. Rxh7 {[%emt 0:01:46] White threatens g6 and mate.} fxg5 {[%emt 0:00:22][%mdl 8192]} (33... e5 $2 {gets mated.} 34. g6 f5 35. Rh8#) (33... Kf7 $16 {might work better.}) 34. Rh8+ $18 {[%emt 0:00:43]} Kf7 {[%emt 0:00:01]} 35. Rf3+ {[%emt 0:01:22]} Kg6 {[%emt 0:01:14] [#]} 36. Ne5+ $1 {[%emt 0:00:15][%mdl 576] Deflection} Nxe5 {[%emt 0:00:05]} 37. Rfxf8 $16 {[%emt 0:00:06][%mdl 4096] Endgame KRR-KRN} Re7 {[%emt 0:00:17]} 38. Re8 {[%emt 0:01:01]} Rf7 {[%emt 0:01:10]} 39. Rhf8 {[%emt 0:00:58]} Nf3+ {[%emt 0:00:34]} (39... Rf6 {was worth a try.} 40. Rxf6+ Kxf6) 40. Kd3 $18 {[%emt 0:01:00] White is clearly winning.} Rxf8 {[%emt 0:00:34]} 41. Rxf8 {[%emt 0:30:06]} Nxh2 {[%emt 0:04:33]} 42. Kxd4 {[%emt 0:00:00] Strongly threatening b4.} Ng4 {[%emt 0:00:34]} 43. b4 {[%emt 0:00:00] aiming for c5.} e5+ {[%emt 0:02:27]} 44. Kd5 {[%emt 0:00:00] c5 is the strong threat.} Nf6+ {[%emt 0:00:13]} 45. Ke6 {[%emt 0:00:00] Weighted Error Value: White=0.11 (very precise) /Black=0.32} 1-0

[Event "Germany Countries-chT Youth 2022"]
[Site "Wiesbaden"]
[Date "2022.10.01"]
[Round "2"]
[White "Waffenschmidt, Lars"]
[Black "Weishaeutel, Moritz"]
[Result "1-0"]
[ECO "B76"]
[WhiteElo "2302"]
[BlackElo "2401"]
[Annotator "TA"]
[PlyCount "49"]
[EventDate "2022.09.28"]
[EventType "team-tourn"]
[EventRounds "7"]
[EventCountry "GER"]
[SourceTitle "playchess.com"]
[Source "ChessBase"]
[SourceQuality "1"]
[TimeControl "40/5400+30:1800+30"]

{[%evp 25,49,53,52,56,57,43,53,3,25,27,39,0,0,0,0,-21,0,0,0,-7,-13,-36,-15,-61,-78,-59]} 1. e4 {[%emt 0:00:03]} c5 {[%emt 0:00:03]} 2. Nf3 {[%emt 0:00:08]} d6 {[%emt 0:00:05]} 3. d4 {[%emt 0:00:06]} cxd4 {[%emt 0:00:03]} 4. Nxd4 {[%emt 0:00:08]} Nf6 {[%emt 0:00:03]} 5. Nc3 {[%emt 0:00:12]} g6 {[%emt 0:00:06]} 6. Be3 {[%emt 0:00:27]} Bg7 {[%emt 0:00:04]} 7. f3 {[%emt 0:00:32]} O-O {[%emt 0:00:06]} 8. Qd2 {[%emt 0:00:35]} Nc6 {[%emt 0:00:06]} 9. O-O-O {[%emt 0:00:28]} d5 {[%emt 0:00:03]} 10. exd5 {[%emt 0:00:35]} Nxd5 {[%emt 0:00:04]} 11. Nxc6 {[%emt 0:00:31]} bxc6 {[%emt 0:00:04]} 12. Bd4 {[%emt 0:00:22]} e5 {[%emt 0:00:03]} 13. Bc5 {[%emt 0:00:21]} Re8 {[%emt 0:00:05] seems to push 13...Be6 aside.} 14. Ne4 {[%emt 0:00:52] B76: Sicilian Dragon: Yugoslav Attack, 9 g4 and 9 0-0-0.} Qc7 {[%emt 0:00:11]} 15. Bc4 {[%emt 0:21:12]} Be6 {[%emt 0:00:16]} 16. Bb3 {[%emt 0:00:57]} (16. g4 $14) 16... Red8 {[%emt 0:00:41]} 17. Qf2 {[%emt 0:02:02]} Nf4 {[%emt 0:03:15]} 18. Bxe6 {[%emt 0:09:45]} Nxe6 {[%emt 0:00:10]} 19. Be3 {[%emt 0:00:24] [#]} f5 $146 {[%emt 0:08:03]} ({Predecessor:} 19... Qa5 20. Kb1 Nd4 21. g4 Rab8 22. g5 Rd5 23. c4 Rd7 24. Nf6+ Bxf6 25. gxf6 Rdb7 26. Bc1 Qc3 {0-1 (37) Yakovich,Y (2104)-Miroshnichenko,D (2062) Voronezh 2006}) 20. Ng5 {[%emt 0:09:59]} Qe7 {[%emt 0:01:47]} 21. Nxe6 {[%emt 0:06:31]} Qxe6 {[%emt 0:00:04]} 22. Kb1 {[%emt 0:00:11]} Rd5 {[%emt 0:03:16]} 23. Bc1 {[%emt 0:12:46]} e4 {[%emt 0:14:56]} 24. fxe4 {[%emt 0:02:03]} (24. Qe3 $11) 24... Ra5 $15 {[%emt 0:00:59][%csl Ga5][%cal Re6a2] [#]} 25. b3 {[%emt 0:02:21][%mdl 32768] White got outplayed after the opening.  Weighted Error Value: White=0.18 (very precise) /Black=0.09 (flawless) . Loss on time!?} ({Don't go for} 25. a3 $2 {[#]} Rxa3 $3 {[%mdl 512]} 26. bxa3 Rb8+ 27. Bb2 Rxb2+ 28. Kc1 Rb8 $17) 1-0

[Event "Germany Countries-chT Youth 2022"]
[Site "Wiesbaden"]
[Date "2022.10.01"]
[Round "2"]
[White "Huber, Benedikt"]
[Black "Kempe, Caius Emilian"]
[Result "1-0"]
[ECO "C02"]
[WhiteElo "2299"]
[BlackElo "2030"]
[Annotator "TA"]
[PlyCount "53"]
[EventDate "2022.09.28"]
[EventType "team-tourn"]
[EventRounds "7"]
[EventCountry "GER"]
[SourceTitle "playchess.com"]
[Source "ChessBase"]
[SourceQuality "1"]
[TimeControl "40/5400+30:1800+30"]

{[%evp 15,53,57,79,87,63,68,80,70,69,81,85,101,100,130,159,159,217,241,260,114,147,159,350,314,320,289,282,283,337,259,989,907,1993,1842,29983,29984,29992,29969,29999,820]} 1. e4 e6 2. d4 d5 3. e5 c5 4. c3 Nc6 5. Nf3 Bd7 6. Be2 Qb6 7. O-O f6 8. dxc5 Bxc5 9. b4 {C02: French: Advance Variation.} Be7 10. Be3 Qc7 11. c4 $1 {White is better.} fxe5 12. cxd5 {[#]} Nxb4 $146 ({Predecessor:} 12... exd5 13. Qxd5 Nf6 14. Qb3 Bxb4 15. Rc1 Be7 16. Ng5 Rf8 17. Nc3 h6 18. Nb5 {1-0 (18) Svrsek,R (1916)-Basson,H (1399) LSS email 2013}) 13. dxe6 Bxe6 14. Qa4+ Nc6 {[#]} 15. Nc3 $1 {[%mdl 1024] White has strong compensation.} Nf6 (15... Nh6 $16 {might work better.}) 16. Ng5 $18 Bg8 {[#]} 17. Bf3 (17. Nb5 $1 $18 {[%cal Rb5c7] is the precise move to win.} Qb8 18. Bf3) 17... h6 18. Nge4 {White is much more active.} Bf7 $2 {A mistake that costs the game.} (18... Nxe4 $16 19. Bxe4 (19. Bh5+ Bf7 $16) 19... Be6) 19. Nxf6+ Bxf6 20. Nd5 Bxd5 21. Bxd5 {Strongly threatening Rab1.} Kf8 22. Rac1 Rc8 $2 (22... Rd8) 23. f4 exf4 24. Bc5+ {A strong pair of Bishops.} Ke8 25. Rfe1+ {White mates.} Kd8 26. Rcd1 Kd7 27. Be6+ {Weighted Error Value: White=0.22 (precise) /Black=0.62} (27. Bxc6# $142) 1-0

[Event "Germany Countries-chT Youth 2022"]
[Site "Wiesbaden"]
[Date "2022.10.01"]
[Round "2"]
[White "Holinka, Henning"]
[Black "Post, Hugo"]
[Result "1-0"]
[ECO "B90"]
[WhiteElo "2245"]
[BlackElo "2176"]
[Annotator "TA"]
[PlyCount "40"]
[EventDate "2022.09.28"]
[EventType "team-tourn"]
[EventRounds "7"]
[EventCountry "GER"]
[SourceTitle "playchess.com"]
[Source "ChessBase"]
[SourceQuality "1"]
[TimeControl "40/5400+30:1800+30"]

{[%evp 17,40,21,31,23,41,19,32,0,20,21,22,14,29,22,30,18,16,0,0,0,0,0,0,-55,-22]} 1. e4 {[%emt 0:00:03]} c5 {[%emt 0:00:08]} 2. Nf3 {[%emt 0:00:11]} d6 {[%emt 0:00:05]} 3. d4 {[%emt 0:00:06]} cxd4 {[%emt 0:00:05]} 4. Nxd4 {[%emt 0:00:06]} Nf6 {[%emt 0:00:05]} 5. Nc3 {[%emt 0:00:06]} a6 {[%emt 0:00:06]} 6. f3 {[%emt 0:00:40]} e5 {[%emt 0:03:09]} 7. Nb3 {[%emt 0:00:21]} Be7 {[%emt 0:00:11]} 8. Be3 {[%emt 0:00:46]} Be6 {[%emt 0:00:14]} 9. Qd2 {[%emt 0:03:04]} h5 {[%emt 0:00:05]} 10. Nd5 {[%emt 0:06:16] B90: Sicilian Najdorf: Unusual White 6th moves, 6 Be3 Ng4 and 6 Be3 e5.} Bxd5 {[%emt 0:00:13]} 11. exd5 {[%emt 0:00:08]} Nbd7 {[%emt 0:00:35]} 12. Na5 {[%emt 0:10:55] White is slightly better.} Qc7 {[%emt 0:01:30]} 13. c4 {[%emt 0:01:53]} O-O {[%emt 0:05:37]} 14. Be2 {[%emt 0:03:40]} e4 {[%emt 0:13:09]} 15. O-O {[%emt 0:16:05]} exf3 {[%emt 0:04:22]} (15... Ne5 {feels hotter.} 16. f4 Neg4 17. Bd4 Rfe8) 16. gxf3 {[%emt 0:02:00]} Rfe8 {[%emt 0:09:37] [#]} 17. b4 $146 {[%emt 0:01:42]} ({Predecessor:} 17. Kh1 Bf8 18. b4 g6 19. Rac1 Ne5 20. Bg5 Nh7 21. Bh4 b6 22. Nb3 Qd7 23. Nd4 {½-½ (40) Schwetlick,T (2469)-Andeer,S (2474) ICCF email 2014}) 17... Ne5 {[%emt 0:06:05]} 18. Rac1 {[%emt 0:06:39]} Qd7 {[%emt 0:01:00]} 19. Bd4 {[%emt 0:03:47]} Bd8 {[%emt 0:04:45]} 20. Nb3 {[%emt 0:05:44]} (20. Kh1 $11) 20... h4 {[%emt 0:01:46][%mdl 32768] Weighted Error Value: White=0.15 (very precise) /Black=0.06 (flawless) . Loss on time!?} 1-0

[Event "Germany Countries-chT Youth 2022"]
[Site "Wiesbaden"]
[Date "2022.10.01"]
[Round "2"]
[White "von Mettenheim, Johannes"]
[Black "Laux, Dominik"]
[Result "1-0"]
[ECO "D52"]
[WhiteElo "2231"]
[BlackElo "2248"]
[Annotator "TA"]
[PlyCount "89"]
[EventDate "2022.09.28"]
[EventType "team-tourn"]
[EventRounds "7"]
[EventCountry "GER"]
[SourceTitle "playchess.com"]
[Source "ChessBase"]
[SourceQuality "1"]
[TimeControl "40/5400+30:1800+30"]

{[%evp 19,89,40,31,0,2,1,18,16,76,23,28,23,33,0,0,2,14,-2,56,0,0,0,0,0,0,0,0,-4,0,0,0,0,0,0,6,-2,-2,-8,0,0,0,-92,-92,-76,-89,-84,379,399,395,388,371,269,263,262,261,258,233,223,251,201,259,241,882,879,827,809,29972,29971,29972,462,5240,5215]} 1. d4 {[%emt 0:05:16]} d5 {[%emt 0:00:17]} 2. c4 {[%emt 0:00:00]} c6 {[%emt 0:00:21]} 3. Nc3 {[%emt 0:00:00]} Nf6 {[%emt 0:00:11]} 4. Nf3 {[%emt 0:00:00]} e6 {[%emt 0:00:14]} 5. Bg5 {[%emt 0:00:00]} Nbd7 {[%emt 0:00:26]} 6. e3 {[%emt 0:00:00]} Qa5 {[%emt 0:00:26]} 7. Nd2 {[%emt 0:00:00]} Bb4 {[%emt 0:01:19]} 8. Qc2 {[%emt 0:00:00]} dxc4 {[%emt 0:00:27]} 9. Bxf6 {[%emt 0:00:00]} Nxf6 {[%emt 0:00:04]} 10. Nxc4 {[%emt 0:00:00]} Qc7 {[%emt 0:00:07]} 11. Qb3 {[%emt 0:13:48] D52: Queen's Gambit Declined: Cambridge Springs Variation.} c5 {[%emt 0:03:57]} 12. Be2 {[%emt 0:04:44]} Bd7 {[%emt 0:04:06]} 13. O-O {[%emt 0:03:45] [#] The position is equal.} Bxc3 $146 {[%emt 0:07:53]} (13... O-O $11) ({Predecessor:} 13... O-O 14. Ne5 cxd4 15. Nxd7 Qxd7 16. Qxb4 dxc3 17. Qxc3 Rac8 18. Qb3 Rfd8 19. Rfd1 Qc7 20. Rxd8+ {½-½ (20) Nihal,S (2532)-Bluebaum,M (2635) Moscow 2018}) 14. bxc3 {[%emt 0:06:11]} (14. Qxc3 $16 Nd5 15. Qa3) 14... O-O $11 {[%emt 0:02:43]} 15. Ne5 {[%emt 0:00:58]} Rab8 {[%emt 0:05:40]} 16. Qa3 {[%emt 0:11:49][%csl LRa7,LRc5]} b6 {[%emt 0:03:17]} 17. Bf3 {[%emt 0:02:13]} Rfd8 {[%emt 0:02:41]} 18. Rab1 {[%emt 0:00:41]} Nd5 {[%emt 0:06:40]} ({Black should play} 18... Be8 $11) 19. Nd3 {[%emt 0:02:40]} (19. Nxd7 $14 Qxd7 20. dxc5) 19... c4 {[%emt 0:10:16]} 20. Ne5 {[%emt 0:10:19]} Be8 {[%emt 0:02:49]} 21. e4 {[%emt 0:01:41]} Nf6 {[%emt 0:02:22]} 22. Rfd1 {[%emt 0:04:44]} a5 {[%emt 0:02:48]} 23. h4 {[%emt 0:04:18]} b5 {[%emt 0:05:25][%cal Bb6b5,Bb5b4,Bb4c3][%mdl 32]} 24. Qc5 {[%emt 0:04:54] Inhibits b4.} Qxc5 {[%emt 0:11:55]} 25. dxc5 $40 {[%emt 0:00:07][%cal Bd4c5,Bc5c6][%mdl 160] aiming for Rxd8. Black needs to defend precisely.} Rdc8 {[%emt 0:08:09]} 26. c6 {[%emt 0:00:35]} h5 {[%emt 0:05:01]} (26... Bxc6 27. Nxc6 Rxc6 28. Rxb5 $3 $16 {[%mdl 512]}) 27. Rb2 {[%emt 0:07:38]} b4 {[%emt 0:02:54]} 28. Rd4 {[%emt 0:13:05]} ({Reject} 28. Nxc4 bxc3 29. Rxb8 Rxb8 $15) 28... Rb5 {[%emt 0:05:16]} 29. Nxc4 {[%emt 0:02:08] Strongly threatening Nd6.} bxc3 {[%emt 0:01:29]} 30. Rc2 {[%emt 0:01:55]} (30. Rxb5 $11 {remains equal.} c2 31. Rd1 cxd1=B 32. Bxd1) 30... Bxc6 $17 {[%emt 0:03:10]} 31. Nd6 {[%emt 0:00:44]} Rb1+ {[%emt 0:00:38]} 32. Kh2 {[%emt 0:00:13]} Ba4 $2 {[%emt 0:00:16][%mdl 8192] This move loses the game for Black.} 33. Rxa4 $18 {[%emt 0:00:19]} Rb2 {[%emt 0:01:13]} 34. Rc1 {[%emt 0:01:24]} ({Less strong is} 34. Nxc8 Rxc2 35. Rxa5 Nd7 $18) 34... Rc5 {[%emt 0:00:46]} 35. Nc4 {[%emt 0:00:39]} Rb4 {[%emt 0:00:28]} 36. Rxb4 {[%emt 0:00:07]} axb4 {[%emt 0:00:04]} 37. Ne3 {[%emt 0:00:24]} Ra5 {[%emt 0:01:19]} 38. Rc2 {[%emt 0:00:34]} Nd7 {[%emt 0:00:33]} 39. Be2 {[%emt 0:00:34]} Nb6 {[%emt 0:01:33]} 40. Nc4 {[%emt 0:00:18]} Rxa2 {[%emt 0:00:06]} (40... Nxc4 41. Bxc4 Kf8) 41. Rxa2 {[%emt 0:30:25]} b3 {[%emt 0:30:04]} 42. Ra1 {[%emt 0:00:00]} Nxc4 {[%emt 0:00:00]} 43. Bxc4 {[%emt 0:00:00]} b2 {[%emt 0:00:00] [#]} 44. Ra8+ $1 {[%emt 0:00:00]} Kh7 {[%emt 0:00:00]} 45. Bd3 {[%emt 0:00:00] Weighted Error Value: White=0.17 (very precise) /Black=0.38} 1-0

[Event "Germany Countries-chT Youth 2022"]
[Site "Wiesbaden"]
[Date "2022.10.01"]
[Round "2"]
[White "Wong, Gengchun"]
[Black "Lutsko, Artem"]
[Result "1/2-1/2"]
[ECO "B99"]
[WhiteElo "2195"]
[BlackElo "2431"]
[Annotator "TA"]
[PlyCount "63"]
[EventDate "2022.09.28"]
[EventType "team-tourn"]
[EventRounds "7"]
[EventCountry "GER"]
[SourceTitle "playchess.com"]
[Source "ChessBase"]
[SourceQuality "1"]
[TimeControl "40/5400+30:1800+30"]

{[%evp 22,63,61,49,48,40,45,44,42,49,32,23,21,0,0,0,0,-53,7,-43,-33,-55,10,10,0,0,27,26,45,31,48,52,82,80,68,24,31,7,8,0,41,0,0,0]} 1. e4 c5 2. Nf3 d6 3. d4 cxd4 4. Nxd4 Nf6 5. Nc3 a6 6. Bg5 e6 7. f4 Be7 8. Qf3 Qc7 9. O-O-O Nbd7 10. g4 {[%cal Bg2g4,Bg4g5][%mdl 32]} h6 11. Bxf6 Bxf6 12. h4 Nb6 $1 {[%mdl 4] now scores much better than the old 12...Qb6. B99: Sicilian Najdorf: 6 Bg5 e6 7 f4 Be7 8 Qf3 Qc7 9 0-0-0 Nbd7.} 13. g5 Bxd4 14. Rxd4 Qc5 {White is slightly better.} 15. Rd1 Bd7 16. Kb1 O-O-O {[#]} 17. Bh3 $146 ({Predecessor:} 17. Bd3 Bc6 18. Qg4 hxg5 19. hxg5 g6 20. Rxh8 Rxh8 21. f5 Qe5 22. Ne2 Kb8 23. fxg6 fxg6 {0-1 (36) Paravyan,D (2617)-Leiva Rodriguez,J (2405) Chess.com INT 2022}) 17... hxg5 18. hxg5 Kb8 19. Qg3 (19. Bf1 $11) 19... Bc6 (19... Nc4 $15) 20. g6 ({Better is} 20. Rhe1 $11) 20... f5 $1 $15 21. Rhe1 Na4 ({Black should play} 21... d5 $15 22. exf5 exf5) 22. Nxa4 $11 Bxa4 23. b3 Bc6 (23... Rc8 $5 {[%cal Rc5c2]} 24. c4 Bc6 $11) 24. exf5 exf5 25. Bg2 {Inhibits Be4.} Bxg2 26. Qxg2 {aiming for Re7.} Rde8 {Prevents Re7.} 27. Qd2 {White is more active.} Kc7 28. Qd3 {[%cal Oa2a3] Against Re4} (28. a3 $5) 28... Kd7 $1 29. Qf3 Qc6 30. Qd3 {[#] Threatens to win with Qd4.} Qc5 31. Qf3 Qc6 32. Qd3 {Weighted Error Value: White=0.17 (very precise) /Black=0.13 (very precise)} 1/2-1/2

[Event "Germany Countries-chT Youth 2022"]
[Site "Wiesbaden"]
[Date "2022.10.01"]
[Round "2"]
[White "Popist, Florian"]
[Black "Haubold, Sebastian Marcel"]
[Result "1-0"]
[ECO "C45"]
[WhiteElo "2187"]
[BlackElo "2039"]
[Annotator "TA"]
[PlyCount "35"]
[EventDate "2022.09.28"]
[EventType "team-tourn"]
[EventRounds "7"]
[EventCountry "GER"]
[SourceTitle "playchess.com"]
[Source "ChessBase"]
[SourceQuality "1"]
[TimeControl "40/5400+30:1800+30"]

{[%evp 9,35,14,21,1,9,0,5,10,57,47,59,53,64,62,65,65,70,33,68,68,58,65,67,60,60,60,91,85]} 1. e4 {[%emt 0:00:02]} e5 {[%emt 0:00:11]} 2. Nf3 {[%emt 0:00:06]} Nc6 {[%emt 0:00:07]} 3. d4 {[%emt 0:00:03]} exd4 {[%emt 0:00:07]} 4. Nxd4 {[%emt 0:00:04]} Qf6 {[%emt 0:00:08]} 5. Nf3 {[%emt 0:00:52]} Bb4+ {[%emt 0:08:56]} 6. Nbd2 {[%emt 0:00:09] C45: Scotch Game.} Nge7 {[%emt 0:04:46]} 7. Be2 {[%emt 0:00:37] [#]} d6 $146 {[%emt 0:01:59]} ({Predecessor:} 7... Ng6 8. c3 Bc5 9. Nb3 Bb6 10. Bg5 Qe6 11. Qc2 h6 12. Bd2 O-O 13. O-O d5 {1-0 (36) Alekseenko,K (2650)-Sanal,V (2520) Konya 2019}) 8. O-O {[%emt 0:00:10] The position is equal.} O-O {[%emt 0:01:13]} (8... Bc5 $11) 9. Nb3 $1 $14 {[%emt 0:00:54]} Ng6 {[%emt 0:12:01]} 10. c3 {[%emt 0:00:43] [#] Black must now prevent Bg5.} Ba5 {[%emt 0:00:35]} 11. Nxa5 {[%emt 0:00:10]} Nxa5 {[%emt 0:00:03]} 12. Bg5 {[%emt 0:04:39]} Qe6 {[%emt 0:00:11]} 13. Bd3 {[%emt 0:01:37]} Nc6 {[%emt 0:07:06]} 14. Bc2 {[%emt 0:10:48]} Qg4 {[%emt 0:06:31]} 15. h3 {[%emt 0:06:33]} Qh5 {[%emt 0:00:57][%cal Oc8h3]} 16. Be3 {[%emt 0:02:21]} h6 {[%emt 0:10:36]} 17. Nd4 {[%emt 0:03:04]} Qh4 {[%emt 0:05:18]} 18. Nf5 {[%emt 0:21:03] Weighted Error Value: White=0.04 (flawless) /Black=0.12 (very precise)} 1-0

[Event "Germany Countries-chT Youth 2022"]
[Site "Wiesbaden"]
[Date "2022.10.01"]
[Round "2"]
[White "Heinrich, John"]
[Black "Schneider, Jana"]
[Result "0-1"]
[ECO "C68"]
[WhiteElo "2139"]
[BlackElo "2323"]
[Annotator "TA"]
[PlyCount "78"]
[EventDate "2022.09.28"]
[EventType "team-tourn"]
[EventRounds "7"]
[EventCountry "GER"]
[SourceTitle "playchess.com"]
[Source "ChessBase"]
[SourceQuality "1"]
[TimeControl "40/5400+30:1800+30"]

{[%evp 9,78,0,19,28,28,32,23,13,25,28,29,0,0,0,0,14,22,14,52,48,201,160,301,305,320,266,281,281,335,214,229,224,229,231,230,185,193,188,183,191,192,192,179,187,192,189,179,64,53,-14,0,-64,-59,-75,14,-217,-39,-241,-241,-241,-241,-509,-400,-875,-869,-1225,-1267,-2520,-2337,-1559,-2011]} 1. e4 e5 2. Nf3 Nc6 3. Bb5 a6 4. Bxc6 dxc6 5. O-O Qf6 6. d4 {C68: Ruy Lopez: Exchange Variation, sidelines.} exd4 7. Bg5 {[%cal Bc1g5,Bg5h4,Bh4g3][%mdl 32]} Qd6 8. Nxd4 {[%cal Bf3d4,Bd4b3,Bb3a5][%mdl 32] White has an edge.} f6 9. Bh4 c5 10. Nb3 (10. Nf5 Bxf5 11. exf5 O-O-O $15) 10... Qxd1 11. Rxd1 Bd7 12. Bg3 O-O-O (12... c4 13. Na5 $16) 13. Nc3 $36 {[%cal Bb1c3,Bc3d5,Bd5b4][%mdl 2080] [#] White has some pressure.} c4 $146 ({Predecessor:} 13... Nh6 14. Nd5 Bd6 15. Bxd6 cxd6 16. a4 Rhe8 17. f3 f5 18. exf5 Bxf5 19. Rd2 Nf7 {1-0 (47) Felix Simoes,R (1825)-De Carvalho,C (2051) Florianopolis 2017}) 14. Na5 b5 $2 (14... Bc5 $14) 15. Nd5 {Threatens to win with a4.} Bd6 (15... Ne7 $16) 16. Bxd6 $18 cxd6 17. Nb4 Be8 18. a4 (18. Nxa6 $6 Ne7 19. b3 d5 $18) 18... Kc7 19. Nxa6+ Kb6 {[#]} 20. Nc5 $1 {[%mdl 512] Pair of Knights!} Rb8 {[#]} 21. Ncb7 {[%mdl 512]} Rxb7 22. Nxb7 Kxb7 23. axb5 ({Don't take} 23. Rxd6 $6 Ne7 $16) 23... Bxb5 24. Rxd6 {Hoping for Rd8.} Ne7 25. Ra5 Bc6 26. Rc5 $1 Ra8 {( -> ...Ra1+)} 27. f3 Ra4 {[#]} 28. Re6 (28. Rd4 $1 $18) 28... Kb6 $14 29. Rh5 (29. Rd5 $1 $14 Ra7 30. Kf2) 29... Ng6 {[%mdl 1024] Strongly threatening ...Nf4. Black has compensation.} 30. Rd6 (30. Rxh7 $11 Nf8 31. Rxc6+ Kxc6 32. Rxg7) 30... h6 $15 31. Rd8 {[#]} Ra2 (31... Ra1+ $1 $17 32. Kf2 Rc1 33. Rb8+ Bb7) 32. Rg8 $2 (32. Rb8+ $1 $11 Bb7 33. Rg8) 32... Nf4 $2 ({Black should try} 32... Rxb2 $19 33. Rxg7 Nf4) 33. Rf5 $2 (33. Rh4 $1 $15 c3 34. bxc3 (34. Rxf4 $2 cxb2 35. h3 b1=Q+ $19)) 33... Ne2+ $19 34. Kf2 Nd4 35. Rh5 (35. Rb8+ Kc7 36. Rb4 Nxc2 37. Rxc4 Rxb2 38. Rb5 Rxb5 39. Rxc2) 35... Rxb2 36. Ke3 (36. Rb8+ $142 Bb7 37. Rd5 Rxc2+ 38. Ke3) 36... Nxc2+ {Black is clearly winning.} 37. Kd2 Na3+ 38. Kc3 Rb3+ 39. Kd2 c3+ {What a bad dream for White.  Weighted Error Value: White=0.93/Black=0.28 (precise)} 0-1